[Event "Qatar Masters-B 2024"]
[Site "Doha"]
[Date "2024.12.05"]
[Round "3.8"]
[White "Ashwath Narayanan P"]
[Black "Zayed, Ali Al-hamed"]
[Result "0-1"]
[ECO "B41"]
[WhiteElo "1760"]
[BlackElo "2039"]
[Annotator "NA RC"]
[PlyCount "122"]
[EventDate "2024.11.24"]
[EventType "swiss"]
[EventCountry "QAT"]
[SourceTitle "playchess.com"]
[Source "ChessBase"]
[SourceQuality "1"]
[TimeControl "40/5400+30:1800+30"]

1. e4 {[%emt 0:00:04]} c5 {[%emt 0:01:00]} 2. Nf3 {[%emt 0:00:15]} e6 {[%emt 0:00:09]} 3. d4 {[%emt 0:00:07]} cxd4 {[%emt 0:00:06]} 4. Nxd4 {[%emt 0:00:05]} a6 {[%emt 0:00:10]} 5. c4 {[%emt 0:00:11]} Qc7 {[%emt 0:00:53]} 6. Nc3 {[%emt 0:00:25]} Nf6 {[%emt 0:02:20]} 7. Bd3 {[%emt 0:00:57]} Nc6 {[%emt 0:01:18]} 8. Be3 {[%emt 0:01:49]} Ne5 {[%emt 0:02:53]} 9. Rc1 {[%emt 0:04:59]} Nxd3+ {[%emt 0:01:37]} 10. Qxd3 {[%emt 0:00:13]} d6 {[%emt 0:01:24]} 11. f3 {[%emt 0:01:29]} Be7 {[%emt 0:01:52]} 12. O-O {[%emt 0:01:48]} O-O {[%emt 0:00:51]} 13. Kh1 {[%emt 0:00:57]} b6 {[%emt 0:00:47]} 14. Rfd1 {[%emt 0:00:58]} Bb7 {[%emt 0:00:28]} 15. Nb3 {[%emt 0:02:47]} Rfd8 {[%emt 0:06:01]} 16. Qe2 {[%emt 0:02:17]} Rac8 {[%emt 0:04:19]} 17. Nd2 {[%emt 0:09:13]} Nd7 {[%emt 0:06:16]} 18. Bd4 {[%emt 0:05:46]} Qb8 {[%emt 0:01:42]} 19. Qf2 {[%emt 0:01:21]} Bc6 {[%emt 0:00:39]} 20. Nf1 {[%emt 0:01:53]} b5 {[%emt 0:01:28]} 21. cxb5 {[%emt 0:02:14]} axb5 {[%emt 0:00:06]} 22. a3 {[%emt 0:01:46]} b4 {[%emt 0:05:44]} 23. axb4 {[%emt 0:03:24]} Qxb4 {[%emt 0:00:03]} 24. Ra1 {[%emt 0:05:01]} Rb8 {[%emt 0:03:27]} 25. Ne2 {[%emt 0:02:47]} Nc5 {[%emt 0:06:44]} 26. Bc3 {[%emt 0:01:34]} Qb7 {[%emt 0:00:24]} 27. Nd4 {[%emt 0:06:45]} Ba4 {[%emt 0:02:37]} 28. Rdb1 {[%emt 0:00:59]} Bd7 {[%emt 0:02:54]} 29. Nd2 {[%emt 0:06:24]} Na4 {[%emt 0:00:54]} 30. Ba5 {[%emt 0:02:29]} Rdc8 {[%emt 0:00:55]} 31. b3 {[%emt 0:00:45]} Qa7 {[%emt 0:04:17]} 32. Bb6 {[%emt 0:08:39]} Qxb6 {[%emt 0:08:58]} 33. bxa4 {[%emt 0:00:33]} Qxb1+ {[%emt 0:00:37]} 34. Rxb1 {[%emt 0:04:22]} Rxb1+ {[%emt 0:00:29]} 35. Nxb1 {[%emt 0:00:03]} Rc1+ {[%emt 0:00:07]} 36. Qg1 {[%emt 0:00:08]} Rxg1+ {[%emt 0:00:10]} 37. Kxg1 {[%emt 0:00:04]} Bxa4 {[%emt 0:00:06]} 38. Nc3 {[%emt 0:00:35]} Bd7 {[%emt 0:02:23]} 39. Kf2 {[%emt 0:01:09]} d5 {[%emt 0:01:50]} 40. Ke2 {[%emt 0:01:18]} Bf6 {[%emt 0:08:03]} 41. Kd3 {[%emt 0:30:47]} e5 {[%emt 0:30:15]} 42. Nb3 {[%emt 0:01:11]} d4 {[%emt 0:01:05]} 43. Nc5 {[%emt 0:01:06]} Bc6 {[%emt 0:00:09]} 44. Nd5 {[%emt 0:00:40]} Bb5+ {[%emt 0:02:31]} 45. Kc2 {[%emt 0:00:23]} Bf1 {[%emt 0:02:52]} 46. Nxf6+ {[%emt 0:02:21]} gxf6 {[%emt 0:00:06]} 47. g3 {[%emt 0:00:10]} Kf8 {[%emt 0:00:38]} 48. Nb3 {[%emt 0:02:22]} Ke7 {[%emt 0:00:49]} 49. Nd2 {[%emt 0:00:38]} Be2 {[%emt 0:00:06]} 50. Kb3 {[%emt 0:03:31]} Kd6 {[%emt 0:00:08]} 51. Kb4 {[%emt 0:00:20]} Kc6 {[%emt 0:00:15]} 52. f4 {[%emt 0:01:02]} Bd3 {[%emt 0:00:43]} 53. fxe5 {[%emt 0:04:19]} fxe5 {[%emt 0:00:07]} 54. Nf3 {[%emt 0:00:24]} f6 {[%emt 0:03:35]} 55. Nd2 {[%emt 0:00:11]} f5 {[%emt 0:01:52]} 56. exf5 {[%emt 0:01:07]} Bxf5 {[%emt 0:00:03]} 57. Kc4 {[%emt 0:00:52]} Be6+ {[%emt 0:00:09]} 58. Kd3 {[%emt 0:00:21]} Kd5 {[%emt 0:00:06]} 59. Ke2 {[%emt 0:01:04]} e4 {[%emt 0:00:36]} 60. Nf1 {[%emt 0:00:50]} Bg4+ {[%emt 0:00:17]} 61. Kf2 {[%emt 0:00:19]} Bh3 {[%emt 0:00:18]} 0-1

[Event "Qatar Masters-B 2024"]
[Site "Doha"]
[Date "2024.12.05"]
[Round "3.9"]
[White "Adeimi, Michel"]
[Black "Mua, Nasrudin"]
[Result "1-0"]
[ECO "B09"]
[WhiteElo "2004"]
[BlackElo "1717"]
[Annotator "NA RC"]
[PlyCount "87"]
[EventDate "2024.11.24"]
[EventType "swiss"]
[EventCountry "QAT"]
[SourceTitle "playchess.com"]
[Source "ChessBase"]
[SourceQuality "1"]
[TimeControl "40/5400+30:1800+30"]

1. e4 d6 2. d4 Nf6 3. Nc3 g6 4. f4 Bg7 5. e5 dxe5 6. fxe5 Nd5 7. Bc4 c6 8. Qf3 Be6 9. Nge2 O-O 10. Ne4 h6 11. Nc5 Bc8 12. O-O b6 13. Nd3 e6 14. Qh3 Kh7 15. Ng3 Ne7 16. c3 Nf5 17. Ne4 Qh4 18. Qf3 Nd7 19. g4 Ne7 20. g5 Nf5 21. Bd2 hxg5 22. Bxg5 Qh5 23. Qg2 Kg8 24. Nf4 Qh7 25. Rae1 Re8 26. Qg4 Bh6 27. Bf6 Bxf4 28. Rxf4 Qh5 29. Qg2 Kf8 30. Be2 Qh6 31. Bg5 Qh8 32. Ref1 Bb7 33. Nd6 Rab8 34. Bd3 Nxd6 35. exd6 f5 36. Rh4 Qg8 37. Qh3 Kg7 38. Be7 Rxe7 39. dxe7 Re8 40. Rf3 Rxe7 41. Rg3 Nf6 42. Rh6 Kf7 43. Qh4 c5 44. Qg5 1-0

[Event "Qatar Masters-B 2024"]
[Site "Doha"]
[Date "2024.12.05"]
[Round "3.10"]
[White "Elarcosa, Rommel T."]
[Black "ADEWOLE, Adeyinka Samuel"]
[Result "0-1"]
[ECO "A80"]
[WhiteElo "1645"]
[BlackElo "1954"]
[Annotator "NA RC"]
[PlyCount "78"]
[EventDate "2024.11.24"]
[EventType "swiss"]
[EventCountry "QAT"]
[SourceTitle "playchess.com"]
[Source "ChessBase"]
[SourceQuality "1"]
[TimeControl "40/5400+30:1800+30"]

1. d4 f5 2. Bg5 h6 3. Bh4 d5 4. e3 g6 5. Nc3 Bg7 6. Nf3 c6 7. Ne5 Bxe5 8. dxe5 Qc7 9. Bg3 e6 10. Be2 Nd7 11. Qd2 h5 12. f4 h4 13. Bf2 g5 14. O-O-O g4 15. Kb1 Ne7 16. Rc1 a6 17. Ka1 b5 18. Nb1 Nc5 19. Bd3 Nb7 20. Qe1 Ng6 21. b3 a5 22. Qc3 Qb6 23. Rhf1 c5 24. Qb2 b4 25. c4 a4 26. Nd2 h3 27. g3 O-O 28. cxd5 exd5 29. Kb1 Be6 30. Rc2 Ra5 31. e4 fxe4 32. Nxe4 dxe4 33. Bxe4 axb3 34. axb3 Qa6 35. Rd1 Ra8 36. Kc1 Ra1+ 37. Kd2 Rd8+ 38. Ke3 Rdxd1 39. Re2 Ra3 0-1